Cogmind - Beta 14 @@@ ROGUE MODE // 2024.10.21 @ 09:41:30 Player: Tereza Result: Destroyed by G-34 Mercenary with Small Laser Performance ------------- Evolutions (1) 500 Regions Visited (3) 600 Robots Destroyed (34) 170 Value Destroyed (1003) 1003 Prototype IDs (1) 20 Alien Tech Used (0) 0 Bonus (35) 35 TOTAL SCORE: 2328 Bonus ------- Follower Combat Kills 35 Cogmind --------- Core Integrity 0/400 Matter 269/300 Energy 95/100 System Corruption 6% Temperature Hot (296) Movement Core (350) Ox6 Location -9/Storage Parts ------- > --- POWER (1) -------- (None) > --- PROPULSION (2) --- (None) > --- UTILITY (4) ------ Large Storage Unit Core Shielding > --- WEAPON (2) ------- (None) > --- INVENTORY (15) --- Light Treads Light Treads Hover Unit Improved Hover Unit Improved Flight Unit Improved Flight Unit Improved Flight Unit Medium Storage Unit Sensor Array Signal Interpreter Peak State ------------ > --- POWER ------------ Improved Ion Engine > --- PROPULSION ------- Light Treads Light Treads > --- UTILITY ---------- Heat Sink Large Storage Unit Improved Light Armor Plating Improved Light Armor Plating > --- WEAPON ----------- Improved EM Shotgun Beam Rifle > --- INVENTORY -------- Improved Ion Engine Light Treads Light Treads Light Treads Hover Unit Improved Hover Unit Improved Flight Unit Improved Flight Unit Improved Flight Unit Medium Storage Unit Sensor Array Signal Interpreter Improved Light Armor Plating Light Assault Rifle [Rating: 19] Favorites ----------- Power Light Nuclear Core Engine Ion Engine Power Core Light Nuclear Core Propulsion Light Treads Treads Light Treads Leg Aluminum Leg Utility Small Storage Unit Device Heat Sink Storage Small Storage Unit Protection Improved Light Armor Plating Weapon Light Assault Rifle Energy Gun Particle Gun Ballistic Gun Light Assault Rifle Build | -11 -10 -9 -9 ------- Run | Yrd Mat Mat Sto Slots Evolved 2 | . . 2 . Power . | . . . . Propulsion . | . . . . Utility 2 | . . 2 . Weapon . | . . . . Parts Attached 38 | 6 5 16 11 Power 4 | 1 1 1 1 Engine 3 | 1 . 1 1 Core 1 | . 1 . . Reactor . | . . . . Propulsion 11 | 2 . 7 2 Treads 7 | 2 . 3 2 Leg 4 | . . 4 . Wheel . | . . . . Hover . | . . . . Flight . | . . . . Utility 11 | 1 2 4 4 Device 3 | . 2 1 . Storage 3 | 1 . 1 1 Processor . | . . . . Hackware . | . . . . Protection 5 | . . 2 3 Artifact . | . . . . Weapon 12 | 2 2 4 4 Energy Gun 7 | . 1 4 2 Energy Cannon . | . . . . Ballistic Gun 5 | 2 1 . 2 Ballistic Cannon . | . . . . Launcher . | . . . . Special Weapon . | . . . . Impact Weapon . | . . . . Slashing Weapon . | . . . . Piercing Weapon . | . . . . Special Melee Weapon . | . . . . Unidentified Prototypes 1 | . . 1 . Parts Lost 19 | . 1 1 17 Power 2 | . . . 2 Propulsion 5 | . 1 . 4 Utility 6 | . . 1 5 Weapon 6 | . . . 6 Highest Loss Streak 12 | . 1 1 12 To Critical Strikes 1 | . . . 1 Average Slot Usage (%) 92 | . 98 93 79 Engine 5 | . 9 . 8 Core 6 | . 4 10 . Treads 19 | . 28 13 18 Leg 2 | . . 5 . Device 12 | . 12 14 7 Storage 12 | . 14 11 11 Protection 9 | . . 14 15 Energy Gun 12 | . 4 17 16 Ballistic Gun 10 | . 23 4 1 Peak Build Rating 19 | 6 10 17 19 Average Rating 11 | 4 7 15 13 On Entrance 7 | . 6 9 16 Naked Turns . | . . . . Heaviest Build 40 | 13 15 30 40 Greatest Support 40 | 40 40 40 40 Greatest Overweight (x) 1 | . . 1 1 Average Overweight (x) . | . . . . Largest Inventory Capacity 15 | 8 8 10 15 Average Capacity 9 | 6 8 8 14 Most Carried 15 | 8 8 10 15 Average Carried 8 | 5 7 8 12 Final Capacity 15 | 8 8 10 15 Final Carried 10 | 8 8 10 10 Class Distribution -------------------- 53% | Mutant 46% | Scavenger-Mutant Dominant Class ---------------- Mutant | -10/Materials Scavenger-Mutant | -9/Materials Scavenger-Mutant | -9/Storage Resources | -11 -10 -9 -9 ----------- Run | Yrd Mat Mat Sto Matter Collected 689 | 267 110 222 90 Remotely . | . . . . Salvage Created 1352 | 87 134 746 385 Parts 80 | 3 14 42 21 Haulers Intercepted 2 | . . 2 . Recyclers Shooed . | . . . . Parts Field Recycled . | . . . . Retrieved Matter . | . . . . Parts Self-Destructed . | . . . . Prevented . | . . . . Kills | -11 -10 -9 -9 ------- Run | Yrd Mat Mat Sto Combat Hostiles Destroyed 27 | . 5 14 8 Guns 26 | . 5 13 8 AOE 1 | . . 1 . Classes Destroyed 9 | 1 3 4 1 Worker 1 | . . 1 . Hauler 2 | . . 2 . Recycler 1 | 1 . . . Watcher 3 | . 1 2 . Swarmer 3 | . 3 . . Grunt 17 | . 2 11 4 Brawler 1 | . . . 1 Duelist 2 | . . 1 1 Sentry 4 | . . 2 2 Best Kill Streak 8 | 1 2 5 8 Combat Bots Only 8 | . 2 5 8 Max Kills in Single Turn 1 | 1 1 1 1 Gunslinging . | . . . . Exploded 1 | . . 1 . Melee . | . . . . Uniques/NPCs Destroyed . | . . . . Combat | -11 -10 -9 -9 -------- Run | Yrd Mat Mat Sto Hostile Shots Fired 278 | . 58 62 158 Missed 57 | . 10 13 34 Damage Taken 3028 | . 529 635 1864 Core 515 | . 115 108 292 Absorbed by Shields . | . . . . Redirected to Shielding 20 | . . . 20 Core Remaining (%) 77 | 100 54 . . Volleys Fired 138 | 3 34 45 56 Largest 2 | 2 2 2 2 Hottest 110 | 40 40 110 96 Shots Fired 237 | 6 68 90 73 Gun 237 | 6 68 90 73 Cannon . | . . . . Launcher . | . . . . Special . | . . . . Kinetic 116 | 6 68 26 16 Thermal 102 | . . 45 57 Explosive . | . . . . Electromagnetic 19 | . . 19 . Robot Hit Streak 21 | 5 5 19 21 Robot Miss Streak 5 | 1 3 5 2 Penetration Max . | . . . . Secondary Targets 3 | . 1 1 1 Max Gunslinging Chain 1 | . 1 1 1 Shots Hit Robots 166 | 5 36 66 59 Core Hits 88 | 2 14 48 24 Critical Kills . | . . . . Critical Parts Destroyed . | . . . . Critical Strikes 4 | . . 1 3 Burn 4 | . . 1 3 Melee Attacks . | . . . . Impact . | . . . . Slashing . | . . . . Piercing . | . . . . Sneak Attacks . | . . . . Combat Hostiles . | . . . . Follow-up Attacks . | . . . . Damage Inflicted 2257 | 64 385 997 811 Guns 2174 | 58 385 920 811 Cannons . | . . . . Explosions 77 | . . 77 . Melee . | . . . . Ramming 6 | 6 . . . Kinetic 720 | 58 385 126 151 Thermal 1266 | . . 606 660 Explosive . | . . . . Electromagnetic 265 | . . 265 . Impact . | . . . . Slashing . | . . . . Piercing . | . . . . Highest Corruption 6 | . . . 6 Average Corruption 5 | . . . 5 Corruption Purged . | . . . . Corruption Blocked . | . . . . Effects 5 | . . . 5 Matter Fused 2 | . . . 2 Heat Flow Errors 1 | . . . 1 Energy Discharges 1 | . . . 1 Weapon Failures 1 | . . . 1 Overload Shots . | . . . . Overflow Damage . | . . . . Projectiles . | . . . . Explosions . | . . . . Melee . | . . . . Knockbacks . | . . . . Impact . | . . . . Kinetic . | . . . . Secondary . | . . . . Self-Inflicted Damage 39 | . . 39 . Shots 2 | . . 2 . Rammed 1 | 1 . . . Targets Rammed 1 | 1 . . . Kicked . | . . . . Crushed . | . . . . Highest Temperature 505 | . 18 345 505 Average Temperature 100 | . 9 83 141 Received Heat Transfer 1161 | . 114 291 756 Effects 5 | . . 2 3 Shutdowns 2 | . . 1 1 Energy Bleed 2 | . . 1 1 Damage (core) 1 | . . . 1 Siege Activations . | . . . . Robots Corrupted . | . . . . Combat Hostiles . | . . . . Parts Fried . | . . . . Impact Corruptions . | . . . . Robots Melted . | . . . . Combat Hostiles . | . . . . Parts Melted 4 | . . 2 2 Heat Transferred 2808 | . . 1112 1696 Parts Sabotaged . | . . . . Parts Stolen . | . . . . Parts Stripped . | . . . . Power Chain Reactions 2 | . . 2 . Alert | -11 -10 -9 -9 ------- Run | Yrd Mat Mat Sto Peak Influence 235 | 5 235 210 193 Initial 59 | . 3 10 59 Average 93 | 2 126 84 96 Maximum Alert Level 1 | . 1 1 . Low Security (%) 89 | 100 79 91 100 Level 1 10 | . 20 8 . Level 2 . | . . . . Level 3 . | . . . . Level 4 . | . . . . Level 5 . | . . . . High Security . | . . . . Max Security . | . . . . Squads Dispatched 7 | . 2 2 3 Investigation 4 | . 2 2 . Extermination . | . . . . Reinforcement 1 | . . . 1 Assault 2 | . . . 2 Garrison . | . . . . Intercept . | . . . . Searches Triggered . | . . . . Construction Impeded . | . . . . Haulers Reinforced . | . . . . Active Scanning Responses . | . . . . Cargo Convoy Interrupts . | . . . . Stealth | -11 -10 -9 -9 --------- Run | Yrd Mat Mat Sto Distress Signals 1 | . 1 . . Communications Jammed . | . . . . Distress Signals . | . . . . Times Spotted 52 | . 11 20 21 Peak Tracking Total 12 | . 4 4 12 Tactical Retreats 6 | . 4 . 2 Traps | -11 -10 -9 -9 ------- Run | Yrd Mat Mat Sto Traps Triggered 3 | . 2 1 . Indirectly . | . . . . Trap Hack Attempts . | . . . . Triggered . | . . . . Disarmed . | . . . . Reprogrammed . | . . . . Reused . | . . . . Traps Extracted . | . . . . Installed . | . . . . Triggered . | . . . . Machines | -11 -10 -9 -9 ---------- Run | Yrd Mat Mat Sto Machines Disabled . | . . . . Max in Single Turn . | . . . . Machines Repaired . | . . . . Machines Dismantled . | . . . . Machines Sabotaged . | . . . . Overloaded Fab Kills . | . . . . Hacking | -11 -10 -9 -9 --------- Run | Yrd Mat Mat Sto Machines Accessed 6 | . 2 3 1 Terminals 6 | . 2 3 1 Fabricators . | . . . . Repair Stations . | . . . . Recycling Units . | . . . . Scanalyzers . | . . . . Garrison Access . | . . . . Total Hacks 14 | . 4 7 3 Successful 4 | . . 3 1 Failed 10 | . 4 4 2 Catastrophic 3 | . . 2 1 Database Lockouts . | . . . . Manual 9 | . 2 5 2 Terminals 14 | . 4 7 3 Fabricators . | . . . . Repair Stations . | . . . . Recycling Units . | . . . . Scanalyzers . | . . . . Garrison Access . | . . . . Terminal Hacks 2 | . . 1 1 Record 1 | . . . 1 Unreport Threat 1 | . . 1 . Fabricator Hacks . | . . . . Repair Station Hacks . | . . . . Recycling Unit Hacks . | . . . . Scanalyzer . | . . . . Garrison Access Hacks . | . . . . Unauthorized Hacks 2 | . . 2 . Terminals 2 | . . 2 . Track 1 | . . 1 . Botnet 1 | . . 1 . Fabricators . | . . . . Repair Stations . | . . . . Recycling Units . | . . . . Scanalyzers . | . . . . Garrison Access . | . . . . Data Cores Recovered . | . . . . Used . | . . . . Hacking Detections 5 | . 2 2 1 Full Trace Events 2 | . 1 1 . Feedback Events . | . . . . Feedback Blocked . | . . . . Robot Schematics Acquired . | . . . . Robots Built . | . . . . Authchips . | . . . . Time . | . . . . Total Robot Build Rating . | . . . . Part Schematics Acquired . | . . . . Parts Built . | . . . . Authchips . | . . . . Time . | . . . . Total Part Build Rating . | . . . . Parts Repaired . | . . . . Time . | . . . . Parts Recycled . | . . . . Recycled Matter . | . . . . Retrieved Matter . | . . . . Retrieved Components . | . . . . Parts Scanalyzed . | . . . . Part Schematics Acquired . | . . . . Parts Damaged . | . . . . Bothacking | -11 -10 -9 -9 ------------ Run | Yrd Mat Mat Sto Used RIF Installer . | . . . . Robots Hacked . | . . . . Non-combat . | . . . . Combat . | . . . . Robot Hacks Applied . | . . . . Relay Couplers Released . | . . . . Fabnet Peak Effective % . | . . . . Robots Rewired . | . . . . Allies Hacked . | . . . . Hacks Repelled . | . . . . Allies | -11 -10 -9 -9 -------- Run | Yrd Mat Mat Sto Total Allies 2 | . . . 2 Largest Group 2 | . . . 2 Highest-Rated Group 62 | . . . 62 Highest-Rated Ally 31 | . . . 31 Total Orders . | . . . . Ally Attacks 20 | . . . 20 Total Damage 265 | . . . 265 Kills 1 | . . . 1 Allies Corrupted . | . . . . Allies Melted . | . . . . Intel | -11 -10 -9 -9 ------- Run | Yrd Mat Mat Sto Robot Analysis Total . | . . . . Derelict Logs Recovered . | . . . . Drone Launches . | . . . . Drone Recoveries . | . . . . Exploration | -11 -10 -9 -9 ------------- Run | Yrd Mat Mat Sto Turns Passed 1440 | 122 466 583 269 Spaces Moved 592 | 63 188 270 71 Core 5 | 5 . . . Treads 516 | 58 188 199 71 Legs 71 | . . 71 . Wheels . | . . . . Hover . | . . . . Flight . | . . . . Fastest Speed 50 | 50 160 120 160 Average Speed 155 | 151 160 151 165 Slowest Speed 240 | 160 160 240 240 Overloaded Moves . | . . . . Propulsion Burnouts . | . . . . Robots Hopped . | . . . . Cave-ins Triggered . | . . . . Exploration Rate (%) 25 | 5 43 31 21 Regions Visited 3 Branch Regions 1 Pre-discovered Areas . | . . . . Known Exits Taken . | . . . . Unknown Exits Taken 3 | 1 1 1 . Scrap Searched . | . . . . Spaces Dug . | . . . . Terrain Destroyed 6 | . . 6 . Melee . | . . . . Projectile . | . . . . AOE 6 | . . 6 . Terrain Rammed . | . . . . Walls Destroyed . | . . . . Machines Disabled . | . . . . Actions | -11 -10 -9 -9 --------- Run | Yrd Mat Mat Sto Total 886 | 82 294 362 148 Wait 74 | . 58 11 5 Move 589 | 62 187 269 71 Hop . | . . . . Pick Up 23 | 9 3 6 5 Fast Attach 23 | 6 3 9 5 Attach 5 | . . . 5 Detach . | . . . . Swap 10 | . 2 7 1 Drop 23 | 1 7 15 . Fire 138 | 3 34 45 56 Melee . | . . . . Ram . | . . . . Kick . | . . . . Crush 1 | 1 . . . Escape Stasis . | . . . . Rewire . | . . . . Trap . | . . . . Miscellaneous . | . . . . Route ------- -11/Scrapyard -10/Materials -9/Materials (discovered 2 exits: [*Mat] / *Sto) -9/Storage History --------- Turn | Location | Event 7 | -11/Scrapyard | Discovered new exit (range 16) 123 | -11/Scrapyard | Entered Materials 301 | -10/Materials | Build established: Mutant 586 | -10/Materials | Discovered new exit (range 3) 589 | -10/Materials | Entered another Materials area 589 | -9/Materials | Evolved 2 slots: Utility x2 987 | -9/Materials | Discovered new exit (range 7) 1012 | -9/Materials | Build established: Scavenger-Mutant 1062 | -9/Materials | Discovered new exit (range 15) 1172 | -9/Materials | Entered Storage 1188 | -9/Storage | Met a pair of Derelict thieves 1338 | -9/Storage | Core integrity fell below 50% 1416 | -9/Storage | Destroyed 8 combat bots 1423 | -9/Storage | Core integrity fell below 20% 1441 | -9/Storage | Destroyed by G-34 Mercenary with Small Laser Last Messages --------------- 01415_ R-06 Scavenger collects Beam Rifle. 01417_ System corrupted: Energy discharge (-65). 01419_ Lgt. Treads destroyed. 01419_ Critical hit (Burn: +37). 01421_ Beam Rifle destroyed. 01422_ Critical hit (Burn: +37). 01425_ M-13 Machinist repairs Y-45 Defender. 01428_ G-47 Trooper destroyed. 01429_ Hvy. Assault Rifle destroyed. 01430_ R-06 Scavenger collects Imp. Heat Sink. 01432_ Acquired Particle Gun. 01434_ R-06 Scavenger collects Aluminum Leg. 01434_ K-01 Serf collects debris. 01437_ Lgt. Treads destroyed. 01437_ R-06 Scavenger collects Aluminum Leg. 01437_ Critical hit (Burn: +37). 01437_ K-01 Serf collects debris. 01438_ Overheating: Energy bleed (-66). 01438_ Imp. Ion Engine destroyed. 01440_ Particle Gun destroyed. Map ----- +----------------------------------------------------+ | | | | | | | | | | | | | | | | | | | | | | | | | | | | | | | | | | | | | ?????????????????????????????????????????????????? | | ???????????????????########??????????????????????? | | ???????????????????# #??????????????????????? | | ???????????????????# #??????????????????????? | | ???????????????????# g #??????????????????????? | | #########??????????# kg #??????????????????????? | | #??????????# Y% #??????????????????????? | | #??????????# % Y@#??????#???????????????? | | ######+########m########T#####???????????? | | ##### %%%!" #???????????? | | #???# # #????????????? | | #???# # #????????????? | | #???# # """" #????????????? | | #???# % + """" #????????????? | | #???# # """" ??????????????? | | #???# * # """"???????????????? | | #???# ###% #######T#### ??????????????? | | #???# #?#= #?????###??###"Y"####?????????????? | | ????# #?# #?????????????"""#????????????????? | | ????# #?#![ #?????????????####????????????????? | | ????# #?#%/ +?????????????????????????????????? | | ????# #?#* #?????????????????????????????????? | | ????# #?# #?????????????????????????????????? | | ????# #?# #?????????????????????????????????? | | ????# ??# #?????????????????????????????????? | | ????# ??# "#?????????????????????????????????? | | ????+ ??# "%#?????????????????????????????????? | | ?????? ???# "%+?????????????????????????????????? | | ??????????# "#?????????????????????????????????? | | ??????????# ??????????????????????????????????? | | ??????????? ??????????????????????????????????? | | ?????????????????????????????????????????????????? | +----------------------------------------------------+ Best States ------------- Heat Dissipation 38 Energy Generation 14 Energy Capacity 265 Matter Stores 300 Matter Capacity 300 Sight Range 16 Robot Scan Range 14 Terrain Scan Range 14 Terrain Scan Density 10 Armor Coverage 300 Core Shielding 20 Evasion (%) 55 Recoil Reduction 2 Item Schematics ----------------- None Robot Schematics ------------------ None Fabricated ------------ Nothing Alien Tech Used ----------------- None Achievements -------------- None Challenges ------------ None Game ------ Seed DiametricPersonalLog Manual? 0 Play Time 00:12:42 Cumulative 81.3 hours Start 2024.10.21 @ 09:31:38 End 2024.10.21 @ 09:41:30 Sessions 1 Manual Loads 0 Difficulty Rogue Special Mode None Game No. 101 Rogue 101 Adventurer 0 Explorer 0 Win Type - Total 0 Types 0/0/0/0/0/0/0/0/0 Lore% 54 Gallery% 45 Achievement% 37 Wizard Run 0 Options --------- Layout 1 ASCII 0 Keyboard 1 Movement Numpad Keybinds 0 Fullscreen 1 Font 24/Smallcaps Map View 50x35 Zoom Use 0% Tactical HUD 1 Map Filters NONE Filters NONE Steam 1 RUN: f2796c98-9f25-46d4-933d-0500c9496a45